bitfinex/quotes_SOLUSD_20250626
["timestamp","ask_amount","ask_price","bid_price","bid_amount"]
[1750943514251,22.29750745,142.9,142.89,0.02]
[1750943514428,17.13446852,142.9,142.89,0.02]
[1750943514741,22.29750745,142.9,142.89,0.02]
[1750943515097,10.64079214,142.9,142.89,0.02]
[1750943515230,15.80383107,142.9,142.89,0.02]
[1750943516024,10.64079214,142.9,142.89,0.02]
[1750943516231,8.80593045,142.9,142.89,0.02]
[1750943516426,3.64289152,142.9,142.89,0.02]
[1750943516638,12.16049948,142.91,142.89,0.02]
[1750943517039,5.16303893,142.91,142.89,0.02]
[1750943517344,10.63827574,142.92,142.89,0.02]
[1750943517539,5.16303893,142.91,142.89,0.02]
[1750943519259,12.16093955,142.9,142.89,0.02]
[1750943521448,18.65461593,142.9,142.89,0.02]
[1750943521625,12.16093955,142.9,142.89,0.02]
[1750943523354,5.16303893,142.9,142.89,107.36964886]
[1750943523651,3.49643893,142.9,142.89,113.85174886]
[1750943524040,6.49367638,142.93,142.89,142.75174886]
[1750943524245,6.49367638,142.93,142.9,18.64964886]
[1750943524452,6.49367638,142.94,142.9,18.64964886]
[1750943524648,13.48984521,142.94,142.9,18.64964886]
[1750943525360,6.49367638,142.93,142.9,18.64964886]
[1750943526036,6.49367638,142.93,142.89,6.5021]
[1750943526245,6.49367638,142.92,142.89,6.5021]
[1750943529286,6.99741095,142.91,142.89,6.5021]
[1750943530467,6.99741095,142.91,142.89,0.02]
[1750943534278,13.49108733,142.91,142.89,0.02]
[1750943534648,6.99741095,142.91,142.89,0.02]
[1750943535254,13.49108733,142.91,142.89,0.02]
[1750943535655,5.1972428,142.9,142.89,0.02]
[1750943536375,12.19514342,142.9,142.89,0.02]
[1750943538271,12.19514342,142.9,142.88,0.02]
[1750943538490,11.69013438,142.89,142.88,0.02]
[1750943539354,18.68852475,142.89,142.88,0.02]
[1750943540152,18.83068632,142.89,142.88,0.02]
[1750943540357,12.33779474,142.89,142.88,0.02]
[1750943542458,0.14216157,142.88,142.87,0.02]
[1750943542659,5.33940437,142.88,142.87,0.02]
[1750943542859,11.61940437,142.88,142.87,0.02]
[1750943543380,25.1059873,142.88,142.87,0.02]
[1750943543777,24.96382573,142.88,142.87,0.02]
[1750943544996,28.60649859,142.88,142.87,0.02]
[1750943545575,22.32649859,142.88,142.87,0.02]
[1750943547470,17.12925579,142.88,142.87,0.02]
[1750943547675,22.32649859,142.88,142.87,0.02]
[1750943548263,17.12925579,142.88,142.87,0.02]
[1750943548590,22.46866016,142.88,142.87,0.02]
[1750943548764,17.27141736,142.88,142.87,0.02]
[1750943549091,22.46866016,142.88,142.87,0.02]
[1750943549287,17.27141736,142.88,142.87,0.02]
[1750943549490,22.46866016,142.88,142.87,0.02]
[1750943549884,15.9809574,142.88,142.87,0.02]
[1750943552991,22.45854979,142.88,142.87,0.02]
[1750943553196,17.26130699,142.88,142.87,0.02]
[1750943553502,15.9809574,142.88,142.87,0.02]
[1750943553670,15.83879583,142.88,142.87,0.02]
[1750943554174,10.64155303,142.88,142.87,0.02]
[1750943559003,3.64267286,142.88,142.87,0.02]
[1750943559207,6.99835467,142.9,142.87,113.49184886]
[1750943561176,24.49310624,142.9,142.87,88.72]
[1750943561379,36.16794143,142.9,142.87,88.72]
[1750943561582,30.97069863,142.9,142.87,88.72]
[1750943561777,36.16794143,142.9,142.87,88.72]
[1750943562086,24.49310624,142.9,142.87,88.72]
[1750943562779,24.49310624,142.9,142.87,0.02]
[1750943563180,29.69034904,142.9,142.87,0.02]
[1750943563386,24.49310624,142.9,142.87,0.02]
[1750943564711,17.49475157,142.9,142.87,0.02]
[1750943565893,24.49265219,142.9,142.87,0.02]
[1750943569491,29.68989499,142.9,142.87,0.02]
[1750943571734,36.16748738,142.9,142.87,0.02]
[1750943572195,11.67483519,142.89,142.87,0.02]
[1750943572512,5.1972428,142.88,142.87,0.02]
[1750943573391,5.1972428,142.89,142.87,0.02]
[1750943573596,6.99888017,142.88,142.87,0.02]
[1750943575005,6.99849923,142.89,142.87,0.02]
[1750943575805,6.99849923,142.89,142.87,90.2278]
[1750943580224,12.19574203,142.89,142.87,90.2278]
[1750943580423,12.19574203,142.89,142.87,0.02]
[1750943580631,5.1972428,142.88,142.87,0.02]
[1750943582099,12.19612297,142.88,142.87,0.02]
[1750943582313,18.67371536,142.88,142.87,0.02]
[1750943582507,18.81587693,142.88,142.87,0.02]
[1750943582993,18.81587693,142.88,142.83,0.02]
[1750943582994,29.83548498,142.88,142.83,0.02]
[1750943583200,11.68919384,142.87,142.83,0.02]
[1750943583500,5.1972428,142.86,142.83,0.02]
[1750943583811,5.1972428,142.85,142.83,0.02]
[1750943584020,6.49195104,142.87,142.83,0.02]
[1750943584021,5.1972428,142.86,142.83,0.02]
[1750943584231,12.19759281,142.85,142.83,0.02]
[1750943585500,5.33940437,142.84,142.83,0.02]
[1750943585721,5.33940437,142.84,142.82,0.02]
[1750943585722,11.83135541,142.84,142.81,0.02]
[1750943586020,5.1972428,142.83,142.81,0.02]
[1750943586397,7.00182047,142.82,142.81,0.02]
[1750943587030,12.19906327,142.82,142.81,0.02]
[1750943587220,7.00182047,142.82,142.81,0.02]
[1750943590014,7.00133025,142.83,142.81,0.02]
[1750943592009,24.50294035,142.84,142.81,0.02]
[1750943594733,0.14216157,142.83,142.81,0.02]
[1750943595807,7.00182047,142.82,142.81,0.02]
[1750943596312,7.14398204,142.82,142.81,0.02]
[1750943596504,13.63593308,142.82,142.81,0.02]
[1750943597611,0.14216157,142.81,142.75,88.72]
[1750943597810,11.80106123,142.81,142.75,0.02]
[1750943598014,0.14216157,142.79,142.75,0.02]
[1750943598320,0.14216157,142.77,142.75,0.02]
[1750943598521,6.28,142.78,142.75,0.02]
[1750943598722,0.14216157,142.77,142.75,0.02]
[1750943600015,7.00476323,142.76,142.75,0.02]
[1750943601434,0.14216157,142.75,142.68,6.1532]
[1750943601934,7.00574471,142.74,142.68,6.1532]
[1750943602304,0.14216157,142.73,142.68,6.1532]
[1750943602922,0.14216157,142.73,142.67,88.7]
[1750943603315,18.79181043,142.73,142.66,1.5647]
[1750943603520,5.33940437,142.73,142.66,1.5647]
[1750943603715,18.79181043,142.73,142.66,1.5647]
[1750943603911,7.14874841,142.73,142.66,1.5647]
[1750943604234,5.14353526,142.76,142.69,18.64964886]
[1750943604541,7.00492083,142.76,142.69,18.64964886]
[1750943605945,7.00492083,142.76,142.68,6.106]
[1750943606116,0.14216157,142.75,142.68,6.106]
[1750943608016,7.00574471,142.74,142.68,6.106]
[1750943609341,7.00510548,142.76,142.69,18.64964886]
[1750943610148,7.00510548,142.76,142.69,107.34964886]
[1750943610516,7.00510548,142.76,142.69,18.64964886]
[1750943611329,7.00510548,142.76,142.67,18.64964886]
[1750943611536,10.6466693,142.77,142.67,18.64964886]
[1750943612024,10.6466693,142.77,142.67,25.65872474]
[1750943612624,10.6466693,142.77,142.67,18.64964886]
[1750943613636,0.14216157,142.76,142.67,18.64964886]
[1750943614046,7.00525394,142.75,142.67,18.64964886]
[1750943615956,7.00525394,142.75,142.67,107.34964886]
[1750943616150,7.00496809,142.76,142.67,107.34964886]
[1750943618758,24.51687618,142.76,142.67,107.34964886]
[1750943619264,0.14216157,142.75,142.67,107.34964886]
[1750943619882,1.66896157,142.75,142.67,88.7]
[1750943620231,24.52010648,142.74,142.67,88.7]
[1750943620534,28.16191317,142.74,142.67,88.7]
[1750943621047,0.14216157,142.73,142.64,88.7]
[1750943621252,5.28197007,142.73,142.65,18.64964886]
[1750943621458,0.14216157,142.73,142.65,18.64964886]
[1750943622254,24.52354259,142.72,142.65,18.64964886]
[1750943622847,24.52354259,142.72,142.64,88.7]
[1750943623040,24.52354259,142.72,142.65,18.64964886]
[1750943623237,7.8342,142.7,142.63,0.02]
[1750943623451,0.14216157,142.68,142.63,0.02]
[1750943624347,7.00869077,142.68,142.63,0.02]
[1750943625571,24.53041771,142.68,142.63,0.02]
[1750943627262,7.00869077,142.68,142.63,0.02]
[1750943627578,7.00832528,142.69,142.63,18.66964886]
[1750943628374,17.51899099,142.71,142.63,18.66964886]
[1750943629374,17.51899099,142.71,142.63,0.02]
[1750943629668,17.51899099,142.71,142.63,18.66964886]
[1750943633878,17.51899099,142.71,142.63,107.36964886]
[1750943635158,7.00672645,142.72,142.63,107.36964886]
[1750943635353,24.52354259,142.72,142.63,107.36964886]
[1750943635569,24.52354259,142.72,142.63,256.26964886]
[1750943635772,24.52354259,142.72,142.64,0.14216157]
[1750943635773,7.00672645,142.72,142.64,0.14216157]
[1750943637351,24.52354259,142.72,142.63,256.26964886]
[1750943640170,29.66335109,142.72,142.63,256.26964886]
[1750943640681,39.76675993,142.72,142.63,256.26964886]
[1750943640861,5.1398085,142.71,142.63,256.26964886]
[1750943641056,34.62695143,142.72,142.63,256.26964886]
[1750943641256,5.1398085,142.71,142.63,256.26964886]
[1750943641687,7.00770847,142.7,142.63,256.26964886]
[1750943642889,12.14751697,142.7,142.63,256.26964886]
[1750943643066,29.66678816,142.7,142.63,256.26964886]
[1750943643272,5.1398085,142.69,142.63,18.66964886]
[1750943643656,5.1398085,142.69,142.63,49.82964886]
[1750943643853,29.66678816,142.7,142.63,49.82964886]
[1750943644359,5.1398085,142.69,142.63,49.82964886]
[1750943644558,29.66678816,142.7,142.63,49.82964886]
[1750943645370,12.14751697,142.7,142.63,49.82964886]
[1750943645570,7.00770847,142.7,142.63,49.82964886]
[1750943646585,7.00770847,142.7,142.63,138.52964886]
[1750943646797,3.64175198,142.72,142.66,0.14216157]
[1750943647086,5.1398085,142.73,142.67,49.78964886]
[1750943647087,7.00623554,142.73,142.67,49.78964886]
[1750943647291,8.81888755,142.74,142.69,18.64964886]
[1750943647495,7.00476323,142.76,142.7,31.14]
[1750943647736,18.76095872,142.77,142.7,31.14]
[1750943647991,3.64021351,142.76,142.71,18.64964886]
[1750943648197,0.04,142.78,142.72,0.14216157]
[1750943648481,0.04,142.78,142.73,49.76964886]
[1750943648785,0.04,142.78,142.73,287.36964886]
[1750943653691,0.04,142.78,142.73,107.34964886]
[1750943655267,0.04,142.78,142.73,88.7]
[1750943655468,24.55323714,142.78,142.73,88.7]
[1750943661805,0.04,142.78,142.73,88.7]
[1750943663311,0.04,142.78,142.74,18.64964886]
[1750943664904,0.04,142.78,142.74,107.34964886]
[1750943669113,7.04378204,142.78,142.74,107.34964886]
[1750943674511,0.04,142.78,142.74,108.88324886]
[1750943674706,0.04,142.78,142.76,18.64964886]
[1750943674897,0.04,142.78,142.76,107.34964886]
[1750943678301,0.04,142.78,142.76,88.7]
[1750943683032,0.04,142.78,142.77,18.64964886]
[1750943683911,0.04,142.78,142.77,107.34964886]
[1750943684112,5.21801251,142.78,142.77,107.34964886]
[1750943684331,0.04,142.78,142.77,107.34964886]
[1750943684514,5.21801251,142.78,142.77,107.34964886]
[1750943684715,0.04,142.78,142.77,107.34964886]
[1750943684930,5.21801251,142.78,142.77,107.34964886]
[1750943685122,0.04,142.78,142.77,107.34964886]
[1750943685315,5.21801251,142.78,142.77,107.34964886]
[1750943685514,0.04,142.78,142.77,107.34964886]
[1750943685736,5.21801251,142.78,142.77,107.34964886]
[1750943687644,12.22179455,142.78,142.77,88.7]
[1750943687845,0.04,142.78,142.77,88.7]
[1750943688053,5.21801251,142.78,142.77,107.34964886]
[1750943689850,0.04,142.78,142.77,107.34964886]
[1750943690047,5.21801251,142.78,142.77,107.34964886]
[1750943690342,0.04,142.78,142.77,107.34964886]
[1750943690541,5.21801251,142.78,142.77,107.34964886]
[1750943693520,0.04,142.78,142.77,107.34964886]
[1750943693749,5.21801251,142.78,142.77,107.34964886]
[1750943694044,0.04,142.78,142.77,107.34964886]
[1750943694350,5.21801251,142.78,142.77,107.34964886]
[1750943694537,0.04,142.78,142.77,107.34964886]
[1750943694725,5.21801251,142.78,142.77,107.34964886]
[1750943697032,12.22179455,142.78,142.77,88.7]
[1750943697239,7.04378204,142.78,142.77,88.7]
[1750943697748,12.22179455,142.78,142.77,88.7]
[1750943697954,7.04378204,142.78,142.77,88.7]
[1750943698130,12.22179455,142.78,142.77,88.7]
[1750943698326,31.014894,142.78,142.74,88.7]
[1750943698545,5.17801251,142.77,142.74,88.7]
[1750943698756,12.1830952,142.76,142.74,88.7]
[1750943698960,5.17801251,142.75,142.74,88.7]
[1750943701653,4.40105721,142.75,142.74,107.34964886]
[1750943701856,6.50165686,142.78,142.75,18.64964886]
[1750943702038,7.04416814,142.78,142.75,107.34964886]
[1750943702237,0.04,142.78,142.75,138.16964886]
[1750943703056,0.04,142.78,142.77,18.64964886]
[1750943703246,0.04,142.78,142.77,49.44964886]
[1750943704255,0.04,142.78,142.77,138.14964886]
[1750943707378,0.04,142.78,142.77,138.29181043]
[1750943708279,0.04,142.83,142.79,18.79181043]
[1750943708435,0.04,142.83,142.8,30.72]
[1750943708849,0.04,142.83,142.81,18.79181043]
[1750943709053,0.04,142.83,142.82,49.34964886]
[1750943709339,0.04,142.83,142.82,138.00964886]
[1750943710469,0.04,142.83,142.82,138.15181043]
[1750943714184,0.04,142.83,142.82,138.85199247]
[1750943715366,0.04,142.83,142.82,145.00399247]
[1750943715672,0.04,142.87,142.86,18.64964886]
[1750943715875,0.04,142.87,142.86,137.99181043]
[1750943716177,0.04,142.87,142.86,107.22964886]
[1750943726922,0.04,142.87,142.86,88.58]
[1750943727126,0.04,142.87,142.83,49.12964886]
[1750943727127,0.04,142.87,142.83,107.22964886]
[1750943727542,0.04,142.87,142.83,88.58]
[1750943728537,0.18216157,142.87,142.8,88.58]
[1750943728705,11.82193293,142.87,142.8,88.58]
[1750943729504,24.49951,142.86,142.8,88.58]
[1750943732236,24.49951,142.86,142.81,18.64964886]
[1750943732435,6.99986,142.86,142.81,107.22964886]
[1750943734659,0.04,142.87,142.81,137.60964886]
[1750943735960,0.04,142.87,142.82,0.14216157]
[1750943736157,0.04,142.87,142.84,18.64964886]
[1750943736455,0.04,142.87,142.86,18.64964886]
[1750943740358,0.04,142.87,142.86,107.22964886]
[1750943740746,0.04,142.87,142.86,88.58]
[1750943744653,0.04,142.87,142.83,107.22964886]
[1750943746163,5.2181145,142.87,142.83,107.22964886]
[1750943746362,5.2181145,142.87,142.83,88.58]
[1750943747264,7.00035001,142.85,142.83,88.58]
[1750943748386,12.1779745,142.86,142.83,88.58]
[1750943749989,5.1781145,142.86,142.84,18.64964886]
[1750943750280,12.21771785,142.87,142.84,18.64964886]
[1750943750484,7.03960335,142.87,142.84,18.64964886]
[1750943750678,12.21771785,142.87,142.84,18.64964886]
[1750943750980,7.03960335,142.87,142.84,18.64964886]
[1750943751182,12.21771785,142.87,142.84,18.64964886]
[1750943751372,7.03960335,142.87,142.84,18.64964886]
[1750943751572,5.2181145,142.87,142.84,18.64964886]
[1750943751887,5.2181145,142.87,142.84,137.40964886]
[1750943753071,12.21749522,142.87,142.84,137.40964886]
[1750943753269,7.03938072,142.87,142.84,137.40964886]
[1750943753572,12.21749522,142.87,142.84,137.40964886]
[1750943753866,7.03938072,142.87,142.84,107.22964886]
[1750943754071,12.21749522,142.87,142.84,107.22964886]
[1750943754275,7.03938072,142.87,142.84,107.22964886]
[1750943754477,12.21749522,142.87,142.84,107.22964886]
[1750943754666,7.03938072,142.87,142.84,107.22964886]
[1750943754860,12.21749522,142.87,142.84,107.22964886]
[1750943755074,7.03938072,142.87,142.84,107.22964886]
[1750943755388,5.1781145,142.86,142.84,107.22964886]
[1750943756904,5.1781145,142.86,142.84,88.58]
[1750943757195,7.00035001,142.85,142.84,88.58]
[1750943757374,7.00035001,142.85,142.82,18.64964886]
[1750943759202,12.17846451,142.85,142.82,18.64964886]
[1750943759368,7.00035001,142.85,142.82,18.64964886]
[1750943759567,12.17846451,142.85,142.82,18.64964886]
[1750943760191,12.17846451,142.85,142.82,88.58]
[1750943760192,29.67933955,142.85,142.82,88.58]
[1750943760369,5.1781145,142.84,142.82,88.58]
[1750943761683,12.17846451,142.85,142.82,88.58]
[1750943764211,5.1781145,142.84,142.82,88.58]
[1750943764415,5.1781145,142.84,142.83,18.64964886]
[1750943764581,5.1781145,142.85,142.83,18.64964886]
[1750943764899,5.1781145,142.84,142.83,18.64964886]
[1750943765101,17.10278468,142.86,142.83,18.64964886]
[1750943765102,5.1781145,142.85,142.83,18.64964886]
[1750943765299,5.1781145,142.84,142.83,18.64964886]
[1750943765512,5.1781145,142.85,142.83,18.64964886]
[1750943765710,12.17849827,142.85,142.83,48.66964886]
[1750943765877,7.00038377,142.85,142.83,48.66964886]
[1750943766078,12.17849827,142.85,142.83,48.66964886]
[1750943766280,7.00038377,142.85,142.83,48.66964886]
[1750943766750,12.17813105,142.86,142.83,48.66964886]
[1750943766876,5.1781145,142.86,142.83,48.66964886]
[1750943767081,5.1781145,142.86,142.83,137.24964886]
[1750943767394,7.03969655,142.87,142.83,137.24964886]
[1750943768112,0.04,142.87,142.83,137.24964886]
[1750943768498,5.2181145,142.87,142.83,137.24964886]
[1750943769013,18.79181043,142.85,142.77,0.02]
[1750943769309,7.00329154,142.79,142.77,0.02]
[1750943769504,12.2981145,142.78,142.77,0.02]
[1750943769680,18.75977136,142.78,142.77,0.02]
[1750943769884,12.2981145,142.78,142.77,0.02]
[1750943770113,11.63977136,142.78,142.77,0.02]
[1750943770546,5.1781145,142.78,142.77,0.02]
[1750943771005,15.68879034,142.8,142.77,0.02]
[1750943771610,0.14216157,142.81,142.77,0.02]
[1750943771909,7.14447233,142.81,142.77,0.02]
[1750943772299,7.00231076,142.81,142.77,0.02]
[1750943773292,7.14398204,142.82,142.77,0.02]
[1750943774508,7.00182047,142.82,142.77,0.02]
[1750943775429,14.12134559,142.83,142.77,0.02]
[1750943781502,20.58300245,142.83,142.77,0.02]
[1750943781700,20.58300245,142.83,142.77,88.6]
[1750943782822,25.76283293,142.83,142.77,88.6]
[1750943783135,0.14216157,142.82,142.77,88.6]
[1750943783523,5.32199205,142.82,142.77,85.1348]
[1750943784316,11.78364891,142.82,142.76,0.02]
[1750943785111,24.50808766,142.81,142.76,0.02]
[1750943785818,0.14216157,142.8,142.76,0.02]
[1750943787334,7.00329154,142.79,142.76,0.02]
[1750943790043,24.50808766,142.81,142.76,0.02]
[1750943790413,0.14216157,142.8,142.76,0.02]
[1750943790615,5.32199205,142.8,142.76,0.02]
[1750943790923,11.78364891,142.8,142.76,0.02]
[1750943791341,6.91399205,142.8,142.76,0.02]
[1750943791638,0.14216157,142.78,142.76,0.02]
[1750943791938,18.78792151,142.77,142.76,0.02]
[1750943792248,13.60809103,142.77,142.76,0.02]
[1750943792426,7.14643417,142.77,142.76,0.02]
[1750943793433,13.60809103,142.77,142.76,0.02]
[1750943794331,7.14643417,142.77,142.76,0.02]
[1750943794849,13.60809103,142.77,142.76,0.02]
[1750943795146,7.14643417,142.77,142.76,0.02]
[1750943799660,7.0042726,142.77,142.76,0.02]
[1750943800946,7.14594361,142.78,142.76,0.02]
[1750943801330,7.00378204,142.78,142.76,0.02]
[1750943802940,0.14216157,142.78,142.76,0.02]
[1750943803534,3.7930704,142.78,142.76,0.02]
[1750943805233,7.0042726,142.77,142.76,0.02]
[1750943806757,18.64964886,142.76,142.71,0.02]
[1750943806955,0.14216157,142.73,142.65,1.6612]
[1750943807362,0.14216157,142.71,142.65,1.6612]
[1750943807541,24.52354259,142.72,142.66,18.64964886]
[1750943807736,24.52354259,142.72,142.65,1.6612]
[1750943808455,0.14216157,142.71,142.65,1.6612]
[1750943808657,5.65504032,142.71,142.65,1.6612]
[1750943809038,5.32199205,142.71,142.65,1.6612]
[1750943809232,24.52697966,142.7,142.65,1.6612]
[1750943812744,45.57148866,142.7,142.65,1.6612]
[1750943813051,28.05221747,142.7,142.65,1.6612]
[1750943813558,7.00770847,142.7,142.65,1.6612]
[1750943814267,7.00770847,142.7,142.65,86.796]
[1750943820263,7.00770847,142.7,142.66,18.64964886]
[1750943820465,12.16543639,142.71,142.66,18.64964886]
[1750943820672,7.00744719,142.71,142.66,18.64964886]
[1750943822168,7.00623554,142.73,142.66,18.64964886]
[1750943822340,24.52182441,142.73,142.66,103.78444886]
[1750943828175,15.81866293,142.74,142.67,29.62]
[1750943828374,5.16090691,142.74,142.69,0.14216157]
[1750943828541,7.00506297,142.76,142.7,48.26964886]
[1750943828741,7.00506297,142.76,142.72,18.64964886]
[1750943828942,7.00506297,142.76,142.72,103.78444886]
[1750943830355,24.55443029,142.78,142.72,103.78444886]
[1750943834361,7.04378204,142.78,142.72,103.78444886]
[1750943834562,7.04378204,142.78,142.72,133.38444886]
[1750943834968,0.04,142.78,142.72,282.28444886]
[1750943835188,0.04,142.78,142.73,6.6325]
[1750943835878,0.04,142.78,142.75,18.64964886]
[1750943836190,0.04,142.78,142.75,103.78444886]
[1750943841389,0.04,142.78,142.76,29.6]
[1750943841588,0.04,142.78,142.77,18.64964886]
[1750943842590,0.04,142.78,142.76,116.3613]
[1750943842987,0.04,142.78,142.76,86.7613]
[1750943843688,0.04,142.78,142.77,18.64964886]
[1750943846276,0.04,142.78,142.77,48.24964886]
[1750943846668,0.04,142.78,142.77,133.38444886]
[1750943847265,0.04,142.83,142.78,24.78664886]
[1750943847460,0.04,142.83,142.81,0.14216157]
[1750943847677,0.04,142.83,142.82,48.24964886]
[1750943848390,0.04,142.83,142.82,282.38661043]
[1750943848965,0.04,142.83,142.82,302.30923245]
[1750943849192,0.04,142.84,142.83,0.14216157]
[1750943849393,0.04,142.84,142.83,19.49194345]
[1750943850499,0.04,142.84,142.83,26.21194345]
[1750943851077,0.04,142.84,142.83,33.2132737]
[1750943851599,0.04,142.84,142.83,39.95997525]
[1750943851785,0.04,142.84,142.83,190.37817525]
[1750943852091,0.04,142.84,142.83,189.67804223]
[1750943852671,0.04,142.84,142.83,182.93134068]
[1750943853076,0.04,142.84,142.83,189.67804223]
[1750943853602,0.04,142.84,142.83,182.93134068]
[1750943853778,0.04,142.84,142.83,189.67804223]
[1750943855598,0.04,142.89,142.88,18.64964886]
[1750943855903,0.04,142.89,142.88,133.24444886]
[1750943856479,0.04,142.89,142.88,289.91861043]
[1750943856699,0.04,142.89,142.88,296.66531198]
[1750943857489,0.04,142.89,142.88,154.76419215]
[1750943858004,0.04,142.94,142.91,44.64964886]
[1750943858191,0.04,142.94,142.93,18.79181043]
[1750943858601,0.04,142.94,142.93,18.64964886]
[1750943859684,0.04,142.94,142.92,114.5948]
[1750943859685,0.04,142.94,142.89,133.40759058]
[1750943860007,0.04,142.94,142.9,18.64964886]
[1750943861292,0.04,142.94,142.9,48.22964886]
[1750943861990,0.04,142.94,142.9,29.58]
[1750943862302,0.04,142.94,142.89,48.39279058]
[1750943862504,0.04,142.94,142.88,29.58]
[1750943862690,1.5823,142.93,142.87,48.22964886]
[1750943863005,1.5823,142.93,142.87,18.64964886]
[1750943863885,6.99692135,142.92,142.87,18.64964886]
[1750943864081,24.48922473,142.92,142.86,18.64964886]
[1750943865384,24.48922473,142.92,142.85,29.58]
[1750943865793,6.99692135,142.92,142.86,18.64964886]
[1750943867211,6.81230699,142.92,142.86,18.64964886]
[1750943869487,8.57884463,142.93,142.86,18.64964886]
[1750943870808,8.57884463,142.93,142.85,18.79181043]
[1750943871015,8.57884463,142.93,142.88,18.64964886]
[1750943871199,8.57884463,142.93,142.88,103.66444886]
[1750943874696,8.57884463,142.93,142.88,85.0148]
[1750943875999,26.06992417,142.93,142.88,85.0148]
[1750943878027,8.57884463,142.93,142.88,85.0148]
[1750943883025,26.06992417,142.93,142.88,85.0148]
[1750943883618,31.22521026,142.93,142.88,85.0148]
[1750943883922,6.99654463,142.93,142.89,18.64964886]
[1750943888232,6.99654463,142.93,142.89,103.66444886]
[1750943892008,3.6861597,142.94,142.91,18.64964886]
[1750943892208,0.04,142.94,142.91,103.66444886]
[1750943892608,7.03602421,142.94,142.91,85.0148]
[1750943893146,0.04,142.94,142.92,18.64964886]
[1750943897040,0.04,142.94,142.92,103.66444886]
[1750943899626,0.04,142.94,142.93,48.70964886]
[1750943900614,0.04,142.94,142.93,18.64964886]
[1750943902820,0.04,142.94,142.93,103.66444886]
[1750943912642,0.04,142.94,142.93,85.0148]
[1750943912949,0.04,142.94,142.93,103.66444886]
[1750943926378,0.04,142.94,142.93,103.80661043]
[1750943926560,0.04,142.96,142.95,18.64964886]
[1750943926761,0.04,142.96,142.95,103.62444886]
[1750943941485,5.19748072,142.96,142.95,103.62444886]
[1750943941685,0.04,142.96,142.95,103.62444886]
[1750943941892,5.19748072,142.96,142.95,103.62444886]
[1750943942074,0.04,142.96,142.95,103.62444886]
[1750943942276,5.19748072,142.96,142.95,103.62444886]
[1750943942478,0.04,142.96,142.95,103.62444886]
[1750943942692,5.19748072,142.96,142.95,103.62444886]
[1750943942885,0.04,142.96,142.95,103.62444886]
[1750943943094,5.19748072,142.96,142.95,103.62444886]
[1750943943291,0.04,142.96,142.95,103.62444886]
[1750943943496,5.19748072,142.96,142.95,103.62444886]
[1750943943796,0.04,142.96,142.95,103.62444886]
[1750943943988,5.19748072,142.96,142.95,103.62444886]
[1750943944189,0.04,142.96,142.95,103.62444886]
[1750943944697,5.19748072,142.96,142.95,103.62444886]
[1750943944996,0.04,142.96,142.95,103.62444886]
[1750943945501,5.19748072,142.96,142.95,103.62444886]
[1750943945702,0.04,142.96,142.95,103.62444886]
[1750943946080,5.19748072,142.96,142.95,103.62444886]
[1750943946282,0.04,142.96,142.95,84.9748]
[1750943946502,5.19748072,142.96,142.95,84.9748]
[1750943946977,12.19244434,142.96,142.95,84.9748]
[1750943947177,12.19244434,142.96,142.92,103.62444886]
[1750943947393,5.15748072,142.95,142.92,103.62444886]
[1750943947603,5.15748072,142.94,142.92,103.62444886]
[1750943947811,5.15748072,142.95,142.92,103.62444886]
[1750943948101,5.15748072,142.94,142.92,103.62444886]
[1750943948275,7.03496362,142.96,142.92,103.62444886]
[1750943948276,5.15748072,142.95,142.92,103.62444886]
[1750943948475,5.15748072,142.94,142.92,103.62444886]
[1750943948677,5.15748072,142.95,142.92,103.62444886]
[1750943948895,5.15748072,142.94,142.92,103.62444886]
[1750943950108,12.15347822,142.94,142.92,103.62444886]
[1750943950283,6.9959975,142.94,142.92,103.62444886]
[1750943950591,12.15347822,142.94,142.92,103.62444886]
[1750943950793,6.9959975,142.94,142.92,103.62444886]
[1750943950993,12.15347822,142.94,142.92,103.62444886]
[1750943951188,6.9959975,142.94,142.92,103.62444886]
[1750943951381,12.15347822,142.94,142.92,103.62444886]
[1750943951584,12.15313047,142.95,142.92,103.62444886]